fUSD/lending_fUSD_20241112
["ID","MTS","AMOUNT","RATE_DAILY","PERIOD"]
[342067242,1731398770369,480.03,0.00012465,2]
[342067243,1731398770585,480.03,0.00012472,2]
[342067244,1731398770806,480.03,0.00012478,2]
[342067245,1731398771013,480.03,0.00012485,2]
[342067246,1731398771217,480.03,0.00012491,2]
[342067247,1731398771417,480.03,0.00012498,2]
[342067248,1731398786046,165.64,8.219e-05,2]
[342067250,1731398797636,164.56,0.00011961,2]
[342067828,1731398814829,4105.15,0.00011961,2]
[342067840,1731398816258,300.0,0.00011961,2]
[342067841,1731398826795,351.07,0.00011955,2]
[342067842,1731398862333,150.0,0.00012,2]
[342067843,1731398866203,1045.95,0.00011989,2]
[342067846,1731398878669,173.16394271,0.00012427,2]
[342067847,1731398883734,173.1639427,0.0001243,2]
[342067848,1731398928972,441.01738973,0.00027,60]
[342067849,1731398929167,250.0,0.00011981,2]
[342067850,1731398935772,1489.34,0.00010043,2]
[342067851,1731398935982,1489.34,0.00012307,2]
[342067861,1731399032477,-480.03,0.00012504,2]
[342067862,1731399032487,-480.03,0.00012511,2]
[342067863,1731399032496,-480.03,0.00012517,2]
[342067864,1731399032505,-480.03,0.00012524,2]
[342067865,1731399032514,-304.405,0.00012527,2]
[342067866,1731399032525,-695.595,0.00012527,2]
[342067867,1731399032534,-480.03,0.0001253,2]
[342067868,1731399032543,-480.03,0.00012537,2]
[342067869,1731399032552,-480.03,0.00012544,2]
[342067870,1731399032561,-480.03,0.0001255,2]
[342067871,1731399032570,-300.0,0.00012556,2]
[342067872,1731399032579,-1529.8,0.00012556,2]
[342067873,1731399032589,-480.03,0.00012557,2]
[342067874,1731399032598,-289.77,0.00012557,2]
[342067875,1731399032610,-3888.02,0.00012557,2]
[342067876,1731399032619,-480.03,0.00012563,2]
[342067877,1731399032627,-5604.84,0.00012584,2]
[342067878,1731399032637,-2662.395,0.00012626,2]
[342067879,1731399032648,-1239.99,0.00012626,2]
[342067880,1731399032659,-1338.895,0.00012626,2]
[342067881,1731399032672,-3609.224,0.00012628,2]
[342067882,1731399032681,-1852.42,0.00012681,2]
[342067883,1731399032691,-673.67,0.00012686,2]
[342067884,1731399032700,-150.0,0.00012727,2]
[342067885,1731399032710,-10679.48557648,0.00012728,2]
[342067886,1731399032721,-66226.77307306,0.00012728,2]
[342067887,1731399032739,-1335.765,0.00012728,2]
[342067888,1731399032786,-41202.40635046,0.00012728,2]
[342067889,1731399032795,-158.58,0.00012737,2]
[342067890,1731399032804,-555.8,0.00012747,2]
[342067891,1731399032814,-2360.02,0.00012773,2]
[342067892,1731399032823,-500.0,0.00012773,2]
[342067893,1731399032832,-500.0,0.00012773,2]
[342067894,1731399032842,-250.0,0.00012792,2]
[342067895,1731399032853,-500.0,0.00012815,2]
[342067897,1731399032862,-3889.74297254,0.00013,2]
[342067898,1731399032870,-159.87,0.00013248,2]
[342067899,1731399032879,-2360.02,0.00013277,2]
[342067900,1731399032888,-724.55,0.0001333,2]
[342067901,1731399032898,-158.58,0.00013374,2]
[342067902,1731399032907,-1749.7993979,0.00013398,2]
[342067903,1731399032916,-5834.8855,0.00013398,2]
[342067904,1731399032925,-150.0,0.000134,2]
[342067905,1731399032934,-433.11,0.000134,2]
[342067906,1731399032943,-362.27,0.000134,2]
[342067907,1731399032952,-150.0,0.000134,2]
[342067908,1731399032961,-360.45,0.000134,2]
[342067909,1731399032970,-150.0,0.000134,2]
[342067910,1731399032979,-308.76,0.000134,2]
[342067911,1731399032988,-881.35935824,0.00013497,2]
[342067912,1731399032998,-59692.0438,0.00013498,2]
[342067913,1731399033007,-500.0,0.00013498,2]
[342067914,1731399033017,-3556.6204,0.00013498,2]
[342067915,1731399033026,-169.61,0.00013546,2]
[342067916,1731399033036,-1749.79939781,0.00013565,2]
[342067917,1731399033045,-1944.75,0.00013642,2]
[342067918,1731399033054,-579.4307,0.00013642,2]
[342067919,1731399033064,-500.0,0.00013698,2]
[342067920,1731399033073,-500.0,0.00013698,2]
[342067921,1731399033082,-500.0,0.00013698,2]
[342067922,1731399033091,-500.0,0.00013698,2]
[342067923,1731399033100,-500.0,0.00013698,2]
[342067924,1731399033111,-500.29538855,0.00013698,2]
[342067925,1731399033120,-500.0,0.00013698,2]
[342067926,1731399033130,-500.0,0.00013698,2]
[342067927,1731399033139,-647.80539802,0.00013698,2]
[342067928,1731399033148,-500.0,0.00013698,2]
[342067929,1731399033158,-500.0,0.00013698,2]
[342067930,1731399033167,-500.0,0.00013698,2]
[342067931,1731399033176,-500.0,0.00013698,2]
[342067932,1731399033186,-500.0,0.00013698,2]
[342067933,1731399033195,-500.0,0.00013698,2]
[342067934,1731399033204,-500.0,0.00013698,2]
[342067935,1731399033213,-500.0,0.00013698,2]
[342067936,1731399033223,-500.0,0.00013698,2]
[342067937,1731399033232,-500.0,0.00013698,2]
[342067938,1731399033241,-500.0,0.00013698,2]
[342067939,1731399033251,-500.0,0.00013698,2]
[342067940,1731399033260,-500.0,0.00013698,2]
[342067941,1731399033269,-500.0,0.00013698,2]
[342067942,1731399033279,-500.0,0.00013698,2]
[342067943,1731399033288,-500.0,0.00013698,2]
[342067944,1731399033297,-500.0,0.00013698,2]
[342067945,1731399033305,-500.0,0.00013698,2]
[342067946,1731399033315,-500.0,0.00013698,2]
[342067947,1731399033324,-500.0,0.00013698,2]
[342067948,1731399033333,-500.0,0.00013698,2]
[342067949,1731399033343,-500.0,0.00013698,2]
[342067950,1731399033354,-500.0,0.00013698,2]
[342067951,1731399033363,-500.0,0.00013698,2]
[342067952,1731399033372,-500.0,0.00013698,2]
[342067953,1731399033381,-500.0,0.00013698,2]
[342067954,1731399033599,-500.0,0.00013698,2]
[342067955,1731399033611,-500.0,0.00013698,2]
[342067956,1731399033622,-500.0,0.00013698,2]
[342067957,1731399033632,-500.0,0.00013698,2]
[342067958,1731399033642,-500.0,0.00013698,2]
[342067959,1731399033652,-500.0,0.00013698,2]
[342067960,1731399033662,-500.0,0.00013698,2]
[342067961,1731399033675,-500.0,0.00013698,2]
[342067962,1731399033685,-500.0,0.00013698,2]
[342067963,1731399033694,-636.44,0.00013698,2]
[342067964,1731399033703,-500.0,0.00013698,2]
[342067965,1731399033714,-500.0,0.00013698,2]
[342067966,1731399033724,-500.0,0.00013698,2]
[342067967,1731399033733,-500.0,0.00013698,2]
[342067968,1731399033743,-500.0,0.00013698,2]
[342067969,1731399033753,-500.0,0.00013698,2]
[342067970,1731399033764,-500.0,0.00013698,2]
[342067971,1731399033774,-500.0,0.00013698,2]
[342067972,1731399033784,-500.0,0.00013698,2]
[342067973,1731399033794,-500.0,0.00013698,2]
[342067974,1731399033804,-500.0,0.00013698,2]
[342067975,1731399033813,-162.258434,0.00013698,2]
[342067976,1731399033823,-500.0,0.00013698,2]
[342067977,1731399033832,-500.0,0.00013698,2]
[342067978,1731399033842,-500.0,0.00013698,2]
[342067979,1731399033852,-1307.78,0.00013698,2]
[342067980,1731399033862,-302.705434,0.00013698,2]
[342067981,1731399033871,-302.705434,0.00013698,2]
[342067982,1731399033881,-302.705434,0.00013698,2]
[342067983,1731399033890,-302.705434,0.00013698,2]
[342067984,1731399033899,-302.705434,0.00013698,2]
[342067985,1731399033908,-439.81558376,0.00013698,2]
[342067986,1731399033918,-302.705434,0.00013698,2]
[342067987,1731399033927,-302.705434,0.00013698,2]
[342067988,1731399033937,-500.0,0.00013698,2]
[342067989,1731399033947,-500.0,0.00013698,2]
[342067990,1731399033955,-500.0,0.00013698,2]
[342067991,1731399033965,-665.41,0.00013698,2]
[342067992,1731399033974,-500.0,0.00013698,2]
[342067993,1731399033984,-500.0,0.00013698,2]
[342067994,1731399033993,-500.0,0.00013698,2]
[342067995,1731399034002,-500.0,0.00013698,2]
[342067996,1731399034011,-150.0,0.00013699,2]
[342067997,1731399034020,-250.0,0.00013699,2]
[342067998,1731399034030,-500.0,0.00013699,2]
[342067999,1731399034039,-500.0,0.00013699,2]
[342068000,1731399034048,-500.0,0.00013699,2]
[342068001,1731399034058,-500.0,0.00013699,2]
[342068002,1731399034067,-500.0,0.00013699,2]
[342068003,1731399034076,-500.0,0.00013699,2]
[342068004,1731399034085,-500.0,0.00013699,2]
[342068005,1731399034094,-500.0,0.00013699,2]
[342068006,1731399034104,-500.0,0.00013699,2]
[342068007,1731399034113,-217.39685223,0.00013699,2]
[342068008,1731399034122,-223.26404566,0.00013699,2]
[342068009,1731399034131,-500.0,0.00013699,2]
[342068010,1731399034140,-500.0,0.00013699,2]
[342068011,1731399034150,-507.65296414,0.00013699,2]
[342068012,1731399034160,-500.0,0.00013699,2]
[342068013,1731399034169,-500.0,0.00013699,2]
[342068014,1731399034178,-509.41845296,0.00013699,2]
[342068015,1731399034187,-500.0,0.00013699,2]
[342068016,1731399034197,-500.0,0.00013699,2]
[342068017,1731399034206,-500.0,0.00013699,2]
[342068018,1731399034216,-500.0,0.00013699,2]
[342068019,1731399034226,-500.0,0.00013699,2]
[342068020,1731399034235,-405.8346709,0.00013699,2]
[342068021,1731399034245,-500.0,0.00013699,2]
[342068022,1731399034254,-500.0,0.00013699,2]
[342068023,1731399034264,-500.0,0.00013699,2]
[342068024,1731399034273,-500.0,0.00013699,2]
[342068025,1731399034282,-500.0,0.00013699,2]
[342068026,1731399034292,-502.42524536,0.00013699,2]
[342068027,1731399034301,-329.38579392,0.00013699,2]
[342068028,1731399034310,-555.87470493,0.00013699,2]
[342068029,1731399034320,-500.0,0.00013699,2]
[342068030,1731399034329,-500.0,0.00013699,2]
[342068031,1731399034338,-500.0,0.00013699,2]
[342068032,1731399034348,-500.0,0.00013699,2]
[342068033,1731399034363,-500.0,0.00013699,2]
[342068034,1731399034373,-500.0,0.00013699,2]
[342068035,1731399034383,-500.0,0.00013699,2]
[342068036,1731399034394,-500.0,0.00013699,2]
[342068037,1731399034404,-500.0,0.00013699,2]
[342068038,1731399034415,-500.0,0.00013699,2]
[342068039,1731399034426,-500.0,0.00013699,2]
[342068040,1731399034437,-500.0,0.00013699,2]
[342068041,1731399034447,-500.0,0.00013699,2]
[342068042,1731399034457,-250.0,0.000137,2]
[342068043,1731399034468,-93244.46030181,0.000137,2]
[342068044,1731399034478,-474.135,0.00013718,2]
[342068045,1731399034487,-13634.0,0.00013718,2]
[342068046,1731399034498,-150.0,0.00013718,2]
[342068047,1731399034509,-5161.951,0.00013718,2]
[342068048,1731399034520,-1749.79939781,0.00013732,2]
[342068049,1731399034529,-150.0,0.00013742,2]
[342068050,1731399034539,-420.0,0.00013776,2]
[342068051,1731399034549,-2360.02,0.00013782,2]
[342068052,1731399034559,-302.705434,0.00013816,2]
[342068053,1731399034570,-255.0,0.00013821,2]
[342068054,1731399034579,-262.101,0.0001389,2]
[342068055,1731399034589,-1749.79939781,0.00013899,2]
[342068056,1731399034599,-500.0,0.00013958,2]
[342068057,1731399034614,-453.0,0.00013958,2]
[342068058,1731399034624,-1254.0,0.00013958,2]
[342068059,1731399034634,-563.0,0.00013958,2]
[342068060,1731399034643,-1991.0,0.00013958,2]
[342068061,1731399034653,-628.0,0.00013958,2]
[342068062,1731399034665,-559.0,0.00013958,2]
[342068063,1731399034676,-1259.0,0.00013958,2]
[342068064,1731399034686,-814.0,0.00013958,2]
[342068065,1731399034696,-3745.0,0.00013958,2]
[342068066,1731399034707,-922.0,0.00013958,2]
[342068067,1731399034717,-500.0,0.00013976,2]
[342068068,1731399034726,-500.0,0.00013976,2]
[342068069,1731399034735,-390.94543373,0.00013976,2]
[342068070,1731399034745,-500.0,0.00013986,2]
[342068071,1731399034755,-500.0,0.00013986,2]
[342068072,1731399034765,-626.89939944,0.00014,2]
[342068073,1731399034774,-158.58,0.00014011,2]
[342068074,1731399034784,-1749.79939781,0.00014066,2]
[342068075,1731399034794,-433.11,0.00014078,2]
[342068076,1731399034803,-362.27,0.00014078,2]
[342068077,1731399034813,-150.0,0.00014078,2]
[342068078,1731399034823,-1000.0,0.00014092,2]
[342068079,1731399034832,-159.87,0.00014185,2]
[342068080,1731399034842,-150.51,0.00014192,2]
[342068081,1731399034851,-150.0,0.00014192,2]
[342068082,1731399034865,-150.0,0.00014192,2]
[342068083,1731399034874,-724.54,0.00014192,2]
[342068084,1731399034884,-154.48,0.00014192,2]
[342068085,1731399034893,-866.22,0.00014192,2]
[342068086,1731399034903,-300.0,0.00014192,2]
[342068087,1731399034912,-1749.79939781,0.00014232,2]
[342068088,1731399034921,-746.61,0.00014247,2]
[342068089,1731399034931,-673.67,0.00014272,2]
[342068090,1731399034940,-2360.02,0.00014286,2]
[342068091,1731399034949,-866.04,0.000143,2]
[342068092,1731399034959,-1749.79939781,0.00014399,2]
[342068093,1731399034969,-68572.0,0.00014552,2]
[342068094,1731399034978,-506.20778707,0.00014565,2]
[342068095,1731399034987,-500.0,0.00014565,2]
[342068096,1731399034997,-500.68734814,0.00014565,2]
[342068097,1731399035006,-545.49771718,0.00014565,2]
[342068098,1731399035015,-1749.79939781,0.00014566,2]
[342068099,1731399035024,-1489.34,0.0001457,2]
[342068100,1731399035034,-158.58,0.00014648,2]
[342068101,1731399035043,-500.0,0.00014715,2]
[342068102,1731399035052,-500.0,0.00014724,2]
[342068103,1731399035062,-500.0,0.00014733,2]
[342068104,1731399035071,-1749.79939781,0.00014733,2]
[342068105,1731399035080,-150.0,0.00014737,2]
[342068106,1731399035088,-500.0,0.00014742,2]
[342068107,1731399035097,-500.0,0.0001475,2]
[342068108,1731399035110,-500.0,0.00014759,2]
[342068109,1731399035119,-1000.0,0.00014762,2]
[342068110,1731399035128,-500.0,0.00014768,2]
[342068111,1731399035137,-150.0,0.00014772,2]
[342068112,1731399035147,-500.0,0.00014777,2]
[342068113,1731399035156,-150.0,0.00014783,2]
[342068114,1731399035166,-500.0,0.00014789,2]
[342068115,1731399035176,-500.0,0.00014789,2]
[342068116,1731399035185,-500.0,0.00014789,2]
[342068117,1731399035195,-500.0,0.00014789,2]
[342068118,1731399035204,-500.0,0.00014789,2]
[342068119,1731399035213,-500.0,0.00014789,2]
[342068120,1731399035221,-500.0,0.00014789,2]
[342068121,1731399035231,-1307.78,0.00014789,2]
[342068122,1731399035240,-500.0,0.00014789,2]
[342068123,1731399035249,-665.41,0.00014789,2]
[342068124,1731399035258,-3222.2583,0.00014789,2]
[342068125,1731399035268,-2360.02,0.0001479,2]
[342068126,1731399035278,-150.0,0.00014824,2]
[342068127,1731399035287,-150.0,0.00014836,2]
[342068128,1731399035296,-500.0,0.00014876,2]
[342068129,1731399035306,-500.0,0.00014876,2]
[342068130,1731399035315,-302.705434,0.00014876,2]
[342068131,1731399035325,-296.9778,0.00014889,2]
[342068132,1731399035334,-500.0,0.00014889,2]
[342068133,1731399035343,-162.258434,0.00014898,2]
[342068134,1731399035355,-2000.0,0.000149,2]
[342068135,1731399035365,-2000.0,0.000149,2]
[342068136,1731399035374,-972.9264,0.000149,2]
[342068137,1731399035384,-4926.27237599,0.000149,2]
[342068138,1731399035393,-1749.79939781,0.000149,2]
[342068139,1731399035403,-198.3786502,0.00014906,2]
[342068140,1731399035412,-181.20288839,0.00014919,2]
[342068141,1731399035421,-500.0,0.00014973,2]
[342068142,1731399035430,-500.0,0.00014973,2]
[342068143,1731399035440,-500.0,0.00014973,2]
[342068144,1731399035449,-150.0,0.00014994,2]
[342068145,1731399035458,-500.0,0.00014996,2]
[342068146,1731399035468,-500.0,0.00014996,2]
[342068147,1731399035477,-500.0,0.00014996,2]
[342068148,1731399035487,-500.0,0.00014996,2]
[342068149,1731399035496,-500.0,0.00014996,2]
[342068150,1731399035505,-557.43279306,0.00014996,2]
[342068151,1731399035514,-1307.78,0.00014996,2]
[342068152,1731399035524,-500.0,0.00014996,2]
[342068153,1731399035533,-500.0,0.00014996,2]
[342068154,1731399035543,-500.0,0.00014996,2]
[342068155,1731399035552,-500.0,0.00014996,2]
[342068156,1731399035561,-500.0,0.00014996,2]
[342068157,1731399035571,-500.0,0.00014996,2]
[342068158,1731399035580,-500.0,0.00014996,2]
[342068159,1731399035589,-504.80486467,0.00014996,2]
[342068160,1731399035598,-665.41,0.00014996,2]
[342068161,1731399035608,-431.98806936,0.00014996,2]
[342068162,1731399035618,-562.75990281,0.00014996,2]
[342068163,1731399035627,-500.0,0.00014996,2]
[342068164,1731399035636,-500.0,0.00014996,2]
[342068165,1731399035646,-500.0,0.00014996,2]
[342068166,1731399035655,-500.0,0.00014996,2]
[342068167,1731399035664,-500.0,0.00014996,2]
[342068168,1731399035673,-500.0,0.00014996,2]
[342068169,1731399035686,-500.0,0.00014996,2]
[342068170,1731399035695,-500.0,0.00014996,2]
[342068171,1731399035704,-232.78637092,0.00014996,2]
[342068172,1731399035714,-500.0,0.00014996,2]
[342068173,1731399035723,-291.80903271,0.00014996,2]
[342068174,1731399035735,-500.0,0.00014996,2]
[342068175,1731399035746,-527.74590514,0.00014996,2]
[342068176,1731399035756,-500.0,0.00014996,2]
[342068177,1731399035765,-500.0,0.00014996,2]
[342068178,1731399035775,-500.0,0.00014996,2]
[342068179,1731399035784,-500.0,0.00014996,2]
[342068180,1731399035794,-520.0789651,0.00014996,2]
[342068181,1731399035803,-500.0,0.00014996,2]
[342068182,1731399035813,-500.0,0.00014996,2]
[342068183,1731399035823,-500.0,0.00014996,2]
[342068184,1731399035832,-500.0,0.00014996,2]
[342068185,1731399035841,-500.0,0.00014996,2]
[342068186,1731399035850,-500.0,0.00014996,2]
[342068187,1731399035865,-500.0,0.00014996,2]
[342068188,1731399035874,-500.0,0.00014996,2]
[342068189,1731399035883,-183468.3256147,0.00014997,2]
[342068190,1731399035893,-500.0,0.00014998,2]
[342068191,1731399035902,-500.0,0.00014998,2]
[342068192,1731399035912,-150.0,0.00014998,2]
[342068193,1731399035921,-500.0,0.00014998,2]
[342068194,1731399035930,-507.59456055,0.00014998,2]
[342068195,1731399035939,-162.258434,0.00014998,2]
[342068196,1731399035948,-162.258434,0.00014998,2]
[342068197,1731399035957,-500.0,0.00014998,2]
[342068198,1731399035966,-500.0,0.00014998,2]
[342068199,1731399035975,-500.0,0.00014998,2]
[342068200,1731399035985,-500.0,0.00014998,2]
[342068201,1731399035994,-500.0,0.00014998,2]
[342068202,1731399036003,-500.0,0.00014998,2]
[342068203,1731399036050,-500.0,0.00014998,2]
[342068204,1731399036059,-500.0,0.00014998,2]
[342068205,1731399036068,-177.54679956,0.00014998,2]
[342068206,1731399036077,-500.0,0.00014998,2]
[342068207,1731399036086,-500.0,0.00014998,2]
[342068208,1731399036095,-512.75999502,0.00014998,2]
[342068209,1731399036108,-500.0,0.00014998,2]
[342068210,1731399036117,-500.0,0.00014998,2]
[342068211,1731399036126,-202.69605934,0.00014998,2]
[342068212,1731399036135,-512.52540919,0.00014998,2]
[342068213,1731399036144,-500.0,0.00014998,2]
[342068214,1731399036153,-500.0,0.00014998,2]
[342068215,1731399036161,-500.0,0.00014998,2]
[342068216,1731399036171,-500.0,0.00014998,2]
[342068217,1731399036181,-500.0,0.00014998,2]
[342068218,1731399036190,-518.07066202,0.00014998,2]
[342068219,1731399036199,-500.0,0.00014998,2]
[342068220,1731399036208,-500.0,0.00014998,2]
[342068221,1731399036217,-150.0,0.00014998,2]
[342068222,1731399036227,-500.0,0.00014998,2]
[342068223,1731399036236,-150.0,0.00014998,2]
[342068224,1731399036245,-1054.0,0.00014998,2]
[342068225,1731399036254,-520.01977991,0.00014998,2]
[342068226,1731399036264,-500.0,0.00014998,2]
[342068227,1731399036275,-500.0,0.00014998,2]
[342068228,1731399036284,-500.0,0.00014998,2]
[342068229,1731399036294,-100554.79,0.00014999,2]
[342068230,1731399036303,-500.0,0.00014999,2]
[342068231,1731399036312,-500.0,0.00014999,2]
[342068232,1731399036322,-568.101516,0.00014999,2]
[342068233,1731399036331,-500.0,0.00014999,2]
[342068234,1731399036341,-500.0,0.00014999,2]
[342068235,1731399036351,-500.0,0.00014999,2]
[342068236,1731399036363,-378.32564042,0.00014999,2]
[342068237,1731399036373,-150.01,0.00014999,2]
[342068238,1731399036383,-3468.4511811,0.00014999,2]
[342068239,1731399036392,-500.0,0.00014999,2]
[342068240,1731399036401,-500.0,0.00014999,2]
[342068241,1731399036411,-334.82880226,0.00014999,2]
[342068242,1731399036420,-500.0,0.00014999,2]
[342068243,1731399036429,-1307.78,0.00014999,2]
[342068244,1731399036438,-1307.78,0.00014999,2]
[342068245,1731399036448,-1307.78,0.00014999,2]
[342068246,1731399036458,-1307.78,0.00014999,2]
[342068247,1731399036467,-1307.78,0.00014999,2]
[342068248,1731399036476,-1307.78,0.00014999,2]
[342068249,1731399036485,-1307.78,0.00014999,2]
[342068250,1731399036495,-1307.78,0.00014999,2]
[342068251,1731399036504,-1307.78,0.00014999,2]
[342068252,1731399036513,-1307.78,0.00014999,2]
[342068253,1731399036523,-1307.78,0.00014999,2]
[342068254,1731399036532,-1307.78,0.00014999,2]
[342068255,1731399036541,-1307.78,0.00014999,2]
[342068256,1731399036550,-1307.78,0.00014999,2]
[342068257,1731399036559,-1307.78,0.00014999,2]
[342068258,1731399036569,-1307.78,0.00014999,2]
[342068259,1731399036579,-1307.78,0.00014999,2]
[342068260,1731399036588,-1307.78,0.00014999,2]
[342068261,1731399036598,-1307.78,0.00014999,2]
[342068262,1731399036610,-1307.78,0.00014999,2]
[342068263,1731399036620,-1307.78064818,0.00014999,2]
[342068264,1731399036629,-500.0,0.00014999,2]
[342068265,1731399036638,-500.0,0.00014999,2]
[342068266,1731399036647,-561.4,0.00014999,2]
[342068267,1731399036656,-500.0,0.00014999,2]
[342068268,1731399036666,-500.0,0.00014999,2]
[342068269,1731399036677,-504.0578126,0.00014999,2]
[342068270,1731399036686,-500.0,0.00014999,2]
[342068271,1731399036696,-500.0,0.00014999,2]
[342068272,1731399036706,-488.83093898,0.00014999,2]
[342068273,1731399036715,-500.0,0.00014999,2]
[342068274,1731399036725,-500.0,0.00014999,2]
[342068275,1731399036734,-498.58298625,0.00014999,2]
[342068276,1731399036743,-500.0,0.00014999,2]
[342068277,1731399036753,-542.97790084,0.00014999,2]
[342068278,1731399036763,-500.0,0.00014999,2]
[342068279,1731399036772,-500.0,0.00014999,2]
[342068280,1731399036781,-500.0,0.00014999,2]
[342068281,1731399036790,-187.87333116,0.00014999,2]
[342068282,1731399036800,-500.0,0.00014999,2]
[342068283,1731399036809,-500.0,0.00014999,2]
[342068284,1731399036818,-665.41,0.00014999,2]
[342068285,1731399036827,-665.41,0.00014999,2]
[342068286,1731399036837,-665.41,0.00014999,2]
[342068287,1731399036846,-665.41,0.00014999,2]
[342068288,1731399036857,-665.41,0.00014999,2]
[342068289,1731399036866,-665.41,0.00014999,2]
[342068290,1731399036875,-665.41,0.00014999,2]
[342068291,1731399036885,-665.41,0.00014999,2]
[342068292,1731399036894,-665.41,0.00014999,2]
[342068293,1731399036903,-665.41,0.00014999,2]
[342068294,1731399036912,-665.41,0.00014999,2]
[342068295,1731399036921,-665.41,0.00014999,2]
[342068296,1731399036930,-665.41,0.00014999,2]
[342068297,1731399036939,-665.41,0.00014999,2]
[342068298,1731399036948,-665.41,0.00014999,2]
[342068299,1731399036957,-665.41,0.00014999,2]
[342068300,1731399036966,-665.41,0.00014999,2]
[342068301,1731399036975,-665.41,0.00014999,2]
[342068302,1731399036984,-665.41,0.00014999,2]
[342068303,1731399036993,-665.41,0.00014999,2]
[342068304,1731399037002,-665.43446845,0.00014999,2]
[342068305,1731399037011,-500.0,0.00014999,2]
[342068306,1731399037019,-500.0,0.00014999,2]
[342068307,1731399037029,-500.0,0.00014999,2]
[342068308,1731399037038,-460.54748651,0.00014999,2]
[342068309,1731399037047,-500.0,0.00014999,2]
[342068310,1731399037056,-219.24261759,0.00014999,2]
[342068311,1731399037065,-500.0,0.00014999,2]
[342068312,1731399037074,-500.0,0.00014999,2]
[342068313,1731399037083,-500.0,0.00014999,2]
[342068314,1731399037092,-500.0,0.00014999,2]
[342068315,1731399037101,-500.0,0.00014999,2]
[342068316,1731399037113,-500.0,0.00014999,2]
[342068317,1731399037121,-500.0,0.00014999,2]
[342068318,1731399037130,-500.0,0.00014999,2]
[342068319,1731399037139,-500.0,0.00014999,2]
[342068320,1731399037148,-378.04802513,0.00014999,2]
[342068321,1731399037157,-500.0,0.00014999,2]
[342068322,1731399037166,-500.0,0.00014999,2]
[342068323,1731399037174,-500.0,0.00014999,2]
[342068324,1731399037183,-500.0,0.00014999,2]
[342068325,1731399037192,-500.0,0.00014999,2]
[342068326,1731399037201,-500.0,0.00014999,2]
[342068327,1731399037210,-500.0,0.00014999,2]
[342068328,1731399037219,-500.0,0.00014999,2]
[342068329,1731399037227,-500.0,0.00014999,2]
[342068330,1731399037236,-555.88928507,0.00014999,2]
[342068331,1731399037245,-500.0,0.00014999,2]
[342068332,1731399037254,-500.0,0.00014999,2]
[342068333,1731399037263,-500.0,0.00014999,2]
[342068334,1731399037272,-500.0,0.00014999,2]
[342068335,1731399037282,-500.0,0.00014999,2]
[342068336,1731399037291,-500.0,0.00014999,2]
[342068337,1731399037299,-500.0,0.00014999,2]
[342068338,1731399037308,-500.0,0.00014999,2]
[342068339,1731399037317,-500.0,0.00014999,2]
[342068340,1731399037326,-495.69586168,0.00014999,2]
[342068341,1731399037335,-500.0,0.00014999,2]
[342068342,1731399037344,-500.0,0.00014999,2]